[Event "AUT-ch 2018"]
[Site "Vienna"]
[Date "2018.07.26"]
[Round "6"]
[White "Spiesberger, Gerhard"]
[Black "Breneis, Lukas"]
[Result "0-1"]
[ECO "D01"]
[WhiteElo "2205"]
[BlackElo "2058"]
[Annotator "NA"]
[PlyCount "112"]
[EventDate "2018.07.22"]
[EventType "swiss"]
[EventCountry "AUT"]
[SourceTitle "playchess.com"]
[Source "ChessBase"]
[SourceQuality "1"]
[TimeControl "40/5400+30:1800+30"]

1. d4 {[%emt 0:00:00]} Nf6 {[%emt 0:00:10]} 2. Nc3 {[%emt 0:00:55]} d5 {[%emt 0:01:41]} 3. Bg5 {[%emt 0:00:58]} Bf5 {[%emt 0:09:13]} 4. e3 {[%emt 0:01:01]} e6 {[%emt 0:01:22]} 5. Bd3 {[%emt 0:01:21]} Bxd3 {[%emt 0:09:27]} 6. cxd3 {[%emt 0:04:25]} Be7 {[%emt 0:01:55]} 7. Nf3 {[%emt 0:01:44]} Nbd7 {[%emt 0:04:39]} 8. O-O {[%emt 0:00:50]} O-O {[%emt 0:02:13]} 9. e4 {[%emt 0:04:49]} c5 {[%emt 0:14:47]} 10. dxc5 {[%emt 0:16:15]} Nxc5 {[%emt 0:02:23]} 11. e5 {[%emt 0:09:18]} Ne8 {[%emt 0:03:27]} 12. Bxe7 {[%emt 0:10:25]} Qxe7 {[%emt 0:00:01]} 13. d4 {[%emt 0:00:18]} Nd7 {[%emt 0:00:51]} 14. Qd3 {[%emt 0:01:18]} Nc7 {[%emt 0:08:31]} 15. Nb5 {[%emt 0:03:13]} Nxb5 {[%emt 0:01:59]} 16. Qxb5 {[%emt 0:00:10]} Nb8 {[%emt 0:08:38]} 17. Rac1 {[%emt 0:03:47]} Nc6 {[%emt 0:00:06]} 18. Rc5 {[%emt 0:01:16]} a6 {[%emt 0:06:54]} 19. Qd3 {[%emt 0:05:49]} f6 {[%emt 0:01:59]} 20. Rfc1 {[%emt 0:03:38]} Rac8 {[%emt 0:03:40]} 21. Qe3 {[%emt 0:02:54]} f5 {[%emt 0:04:54]} 22. Qg5 {[%emt 0:07:01]} Qd7 {[%emt 0:01:44]} 23. h4 {[%emt 0:01:15]} Rc7 {[%emt 0:04:05]} 24. b4 {[%emt 0:03:23]} Rfc8 {[%emt 0:00:28]} 25. a3 {[%emt 0:01:29]} a5 {[%emt 0:01:20]} 26. Qd2 {[%emt 0:03:49]} b6 {[%emt 0:02:15]} 27. R5c2 {[%emt 0:01:38]} axb4 {[%emt 0:00:25]} 28. axb4 {[%emt 0:00:14]} Nd8 {[%emt 0:01:28]} 29. b5 {[%emt 0:03:00]} h6 {[%emt 0:00:53]} 30. Rxc7 {[%emt 0:00:17]} Rxc7 {[%emt 0:00:02]} 31. Rxc7 {[%emt 0:00:06]} Qxc7 {[%emt 0:00:02]} 32. Qb4 {[%emt 0:00:57]} Nb7 {[%emt 0:01:17]} 33. h5 {[%emt 0:00:34]} Kf7 {[%emt 0:00:24]} 34. Qa3 {[%emt 0:00:47]} Na5 {[%emt 0:00:29]} 35. Nh4 {[%emt 0:01:39]} Qe7 {[%emt 0:00:29]} 36. Qh3 {[%emt 0:01:41]} Qg5 {[%emt 0:01:27]} 37. Ng6 {[%emt 0:00:22]} Nc4 {[%emt 0:00:59]} 38. Nh8+ {[%emt 0:02:23]} Kg8 {[%emt 0:00:17]} 39. Ng6 {[%emt 0:00:18]} Kf7 {[%emt 0:00:44]} 40. Nh8+ {[%emt 0:00:11]} Kg8 {[%emt 0:31:05]} 41. Ng6 {[%emt 0:32:00]} Qc1+ {[%emt 0:00:00]} 42. Kh2 {[%emt 0:00:00]} Kf7 {[%emt 0:00:00]} 43. Qh4 {[%emt 0:00:00]} Qg5 {[%emt 0:00:00]} 44. Qh3 {[%emt 0:00:00]} Qg4 {[%emt 0:00:00]} 45. Qxg4 {[%emt 0:00:00]} fxg4 {[%emt 0:00:00]} 46. Kg3 {[%emt 0:00:00]} Na3 {[%emt 0:00:00]} 47. Nf4 {[%emt 0:00:00]} Nxb5 {[%emt 0:00:00]} 48. Ne2 {[%emt 0:00:00]} Na3 {[%emt 0:00:00]} 49. Nc1 {[%emt 0:00:00]} Nc2 {[%emt 0:00:00]} 50. Nb3 {[%emt 0:00:39]} Ne1 {[%emt 0:00:00]} 51. Kxg4 {[%emt 0:01:19]} Nxg2 {[%emt 0:00:00]} 52. Kg3 {[%emt 0:01:07]} Ne1 {[%emt 0:00:00]} 53. f4 {[%emt 0:00:39]} g6 {[%emt 0:00:00]} 54. Kg4 {[%emt 0:00:58]} Nc2 {[%emt 0:00:24]} 55. Kh4 {[%emt 0:00:36]} Ne3 {[%emt 0:00:25]} 56. Kg3 {[%emt 0:00:36]} gxh5 {[%emt 0:00:35]} 0-1

[Event "AUT-ch 2018"]
[Site "Vienna"]
[Date "2018.07.26"]
[Round "6"]
[White "Windhager, Hannes"]
[Black "Huber, Martin Christian"]
[Result "0-1"]
[ECO "C12"]
[WhiteElo "2203"]
[BlackElo "2374"]
[Annotator "NA"]
[PlyCount "106"]
[EventDate "2018.07.22"]
[EventType "swiss"]
[EventCountry "AUT"]
[SourceTitle "playchess.com"]
[Source "ChessBase"]
[SourceQuality "1"]
[TimeControl "40/5400+30:1800+30"]

1. e4 {[%emt 0:00:00]} e6 {[%emt 0:00:17]} 2. d4 {[%emt 0:00:00]} d5 {[%emt 0:00:05]} 3. Nc3 {[%emt 0:00:00]} Nf6 {[%emt 0:00:05]} 4. Bg5 {[%emt 0:00:07]} Bb4 {[%emt 0:00:25]} 5. e5 {[%emt 0:00:31]} h6 {[%emt 0:00:16]} 6. Bd2 {[%emt 0:00:14]} Bxc3 {[%emt 0:00:13]} 7. Bxc3 {[%emt 0:00:07]} Ne4 {[%emt 0:00:16]} 8. Bb4 {[%emt 0:00:18]} c5 {[%emt 0:01:33]} 9. Bxc5 {[%emt 0:00:21]} Nxc5 {[%emt 0:00:46]} 10. dxc5 {[%emt 0:00:09]} Qa5+ {[%emt 0:01:35]} 11. Qd2 {[%emt 0:00:45]} Qxc5 {[%emt 0:00:11]} 12. f4 {[%emt 0:01:18]} Nc6 {[%emt 0:08:41]} 13. Nf3 {[%emt 0:00:33]} a5 {[%emt 0:04:07]} 14. O-O-O {[%emt 0:07:40]} O-O {[%emt 0:18:02]} 15. Kb1 {[%emt 0:07:28]} b5 {[%emt 0:08:33]} 16. g4 {[%emt 0:12:14]} b4 {[%emt 0:14:12]} 17. Bd3 {[%emt 0:05:39]} Ne7 {[%emt 0:10:52]} 18. h4 {[%emt 0:16:54]} a4 {[%emt 0:01:47]} 19. h5 {[%emt 0:03:10]} Ba6 {[%emt 0:02:45]} 20. f5 {[%emt 0:09:09]} Bxd3 {[%emt 0:04:01]} 21. Qxd3 {[%emt 0:01:16]} b3 {[%emt 0:03:56]} 22. cxb3 {[%emt 0:08:40]} axb3 {[%emt 0:00:11]} 23. a3 {[%emt 0:01:25]} Rfb8 {[%emt 0:15:11]} 24. Rc1 {[%emt 0:06:50]} Qb6 {[%emt 0:00:24]} 25. f6 {[%emt 0:03:01]} Nc6 {[%emt 0:00:04]} 26. fxg7 {[%emt 0:02:06]} Na5 {[%emt 0:03:32]} 27. g5 {[%emt 0:06:36]} Nc4 {[%emt 0:00:05]} 28. gxh6 {[%emt 0:02:20]} Qf2 {[%emt 0:00:34]} 29. h7+ {[%emt 0:03:18]} Kxg7 {[%emt 0:00:05]} 30. Rcg1+ {[%emt 0:00:48]} Kh8 {[%emt 0:00:29]} 31. Rg8+ {[%emt 0:01:48]} Rxg8 {[%emt 0:00:05]} 32. hxg8=Q+ Rxg8 {[%emt 0:00:00]} 33. Qxb3 {[%emt 0:00:30]} Qxf3 {[%emt 0:00:01]} 34. Qxf3 {[%emt 0:00:08]} Nd2+ {[%emt 0:00:03]} 35. Kc2 {[%emt 0:00:08]} Nxf3 {[%emt 0:00:03]} 36. a4 {[%emt 0:01:13]} Rc8+ {[%emt 0:01:21]} 37. Kd3 {[%emt 0:00:46]} Nxe5+ {[%emt 0:01:40]} 38. Kd4 {[%emt 0:00:12]} Nd7 {[%emt 0:00:29]} 39. b3 {[%emt 0:00:58]} Rc5 {[%emt 0:01:20]} 40. Rf1 {[%emt 0:00:36]} f5 {[%emt 0:31:30]} 41. Ra1 {[%emt 0:00:24]} e5+ {[%emt 0:00:00]} 42. Kd3 {[%emt 0:00:07]} d4 {[%emt 0:00:00]} 43. a5 {[%emt 0:01:23]} Rc3+ {[%emt 0:00:00]} 44. Ke2 {[%emt 0:00:15]} Re3+ {[%emt 0:00:00]} 45. Kf2 {[%emt 0:00:59]} Rxb3 {[%emt 0:00:00]} 46. a6 {[%emt 0:00:08]} Rb8 {[%emt 0:00:00]} 47. a7 {[%emt 0:00:30]} Ra8 {[%emt 0:00:00]} 48. Ra6 {[%emt 0:01:07]} Kg7 {[%emt 0:00:00]} 49. Kg3 {[%emt 0:00:39]} Nc5 {[%emt 0:00:00]} 50. Ra5 {[%emt 0:00:29]} Ne4+ {[%emt 0:00:00]} 51. Kf3 {[%emt 0:01:25]} d3 {[%emt 0:00:00]} 52. Ke3 {[%emt 0:00:31]} d2 {[%emt 0:00:00]} 53. Ke2 {[%emt 0:00:09]} Rd8 {[%emt 0:00:00]} 0-1

[Event "AUT-ch 2018"]
[Site "Vienna"]
[Date "2018.07.26"]
[Round "6"]
[White "Exler, Veronika"]
[Black "Morgunov, Marc"]
[Result "0-1"]
[ECO "E11"]
[WhiteElo "2198"]
[BlackElo "2362"]
[Annotator "NA"]
[PlyCount "60"]
[EventDate "2018.07.22"]
[EventType "swiss"]
[EventCountry "AUT"]
[SourceTitle "playchess.com"]
[Source "ChessBase"]
[SourceQuality "1"]
[TimeControl "40/5400+30:1800+30"]

1. d4 {[%emt 0:00:00]} Nf6 {[%emt 0:00:10]} 2. c4 {[%emt 0:00:00]} e6 {[%emt 0:00:05]} 3. Nf3 {[%emt 0:00:00]} Bb4+ {[%emt 0:00:14]} 4. Bd2 {[%emt 0:00:00]} Be7 {[%emt 0:04:22]} 5. g3 {[%emt 0:01:44]} O-O {[%emt 0:01:00]} 6. Bg2 {[%emt 0:00:05]} d5 {[%emt 0:02:27]} 7. O-O {[%emt 0:00:25]} Nbd7 {[%emt 0:02:22]} 8. Bf4 {[%emt 0:04:43]} dxc4 {[%emt 0:02:03]} 9. Nbd2 {[%emt 0:04:30]} b5 {[%emt 0:10:49]} 10. a4 {[%emt 0:01:31]} c6 {[%emt 0:00:25]} 11. e4 {[%emt 0:02:46]} Bb7 {[%emt 0:01:37]} 12. Qc2 {[%emt 0:00:12]} a6 {[%emt 0:02:27]} 13. b3 {[%emt 0:04:28]} cxb3 {[%emt 0:02:07]} 14. Nxb3 {[%emt 0:00:07]} c5 {[%emt 0:02:46]} 15. e5 {[%emt 0:05:54]} Nd5 {[%emt 0:00:09]} 16. axb5 {[%emt 0:11:08]} axb5 {[%emt 0:00:16]} 17. Rxa8 {[%emt 0:10:27]} Qxa8 {[%emt 0:00:10]} 18. Ra1 {[%emt 0:00:16]} Qb8 {[%emt 0:05:01]} 19. dxc5 {[%emt 0:15:50]} Rc8 {[%emt 0:00:16]} 20. Qe2 {[%emt 0:19:01]} Nxc5 {[%emt 0:07:05]} 21. Nxc5 {[%emt 0:05:51]} Nxf4 {[%emt 0:00:29]} 22. gxf4 {[%emt 0:00:07]} Rxc5 {[%emt 0:00:07]} 23. Nd4 {[%emt 0:01:15]} g6 {[%emt 0:03:57]} 24. Nb3 {[%emt 0:00:59]} Rc8 {[%emt 0:00:45]} 25. Ra5 {[%emt 0:03:15]} Bxg2 {[%emt 0:01:46]} 26. Kxg2 {[%emt 0:00:02]} Qb7+ {[%emt 0:00:15]} 27. Kg1 {[%emt 0:01:43]} b4 {[%emt 0:01:26]} 28. Rb5 {[%emt 0:00:11]} Qd7 {[%emt 0:03:15]} 29. h4 {[%emt 0:00:42]} Rc3 {[%emt 0:00:42]} 30. Na5 {[%emt 0:00:30]} Qd4 {[%emt 0:01:30]} 0-1

[Event "AUT-ch 2018"]
[Site "Vienna"]
[Date "2018.07.26"]
[Round "6"]
[White "Steiner, Bruno"]
[Black "Jedinger, Andreas"]
[Result "1/2-1/2"]
[ECO "A20"]
[WhiteElo "2194"]
[BlackElo "2090"]
[Annotator "NA"]
[PlyCount "132"]
[EventDate "2018.07.22"]
[EventType "swiss"]
[EventCountry "AUT"]
[SourceTitle "playchess.com"]
[Source "ChessBase"]
[SourceQuality "1"]
[TimeControl "40/5400+30:1800+30"]

1. c4 e5 {[%emt 0:00:18]} 2. e3 {[%emt 0:00:00]} Nf6 {[%emt 0:00:23]} 3. Nc3 {[%emt 0:00:00]} d5 {[%emt 0:00:08]} 4. cxd5 {[%emt 0:00:08]} Nxd5 {[%emt 0:00:04]} 5. Nf3 {[%emt 0:00:24]} Nxc3 {[%emt 0:01:12]} 6. bxc3 {[%emt 0:00:05]} Bd6 {[%emt 0:01:46]} 7. d4 {[%emt 0:02:34]} Nd7 {[%emt 0:03:24]} 8. Bd3 {[%emt 0:10:34]} Qe7 {[%emt 0:01:07]} 9. Qc2 {[%emt 0:02:22]} h6 {[%emt 0:00:13]} 10. O-O {[%emt 0:00:22]} O-O {[%emt 0:00:13]} 11. Re1 {[%emt 0:06:07]} Re8 {[%emt 0:11:48]} 12. e4 {[%emt 0:05:39]} b6 {[%emt 0:04:30]} 13. Bb5 {[%emt 0:20:58]} Rd8 {[%emt 0:17:03]} 14. Bc6 {[%emt 0:04:49]} Rb8 {[%emt 0:00:04]} 15. Be3 {[%emt 0:11:57]} Bb7 {[%emt 0:01:14]} 16. Bxb7 {[%emt 0:02:55]} Rxb7 {[%emt 0:02:17]} 17. dxe5 {[%emt 0:04:46]} Bxe5 {[%emt 0:05:33]} 18. Nd4 {[%emt 0:01:25]} Qf6 {[%emt 0:02:02]} 19. Rad1 {[%emt 0:06:15]} Nf8 {[%emt 0:03:51]} 20. Nf5 {[%emt 0:00:53]} Rbb8 {[%emt 0:01:28]} 21. f4 {[%emt 0:00:33]} Bxc3 {[%emt 0:00:54]} 22. e5 {[%emt 0:00:47]} Qe6 {[%emt 0:00:27]} 23. Nxg7 {[%emt 0:02:16]} Kxg7 {[%emt 0:00:36]} 24. Qxc3 {[%emt 0:00:04]} Kg8 {[%emt 0:07:05]} 25. Qxc7 {[%emt 0:01:17]} Rxd1 {[%emt 0:03:03]} 26. Rxd1 {[%emt 0:00:02]} Rc8 {[%emt 0:00:08]} 27. Qxa7 {[%emt 0:00:39]} Rc2 {[%emt 0:00:58]} 28. Qa8 {[%emt 0:03:41]} Rxa2 {[%emt 0:02:21]} 29. Qe4 {[%emt 0:00:41]} Qg4 {[%emt 0:01:22]} 30. Rf1 {[%emt 0:02:45]} Ng6 {[%emt 0:01:04]} 31. h3 {[%emt 0:00:29]} Qe2 {[%emt 0:02:37]} 32. Qf3 {[%emt 0:01:23]} Nh4 {[%emt 0:01:11]} 33. Qxe2 {[%emt 0:00:48]} Rxe2 {[%emt 0:00:08]} 34. Bf2 {[%emt 0:00:12]} Nf5 {[%emt 0:00:55]} 35. Bxb6 {[%emt 0:00:50]} h5 {[%emt 0:00:54]} 36. Rf2 {[%emt 0:03:04]} Re1+ {[%emt 0:00:43]} 37. Rf1 {[%emt 0:00:12]} Re2 {[%emt 0:00:05]} 38. Ra1 {[%emt 0:00:37]} Re4 {[%emt 0:03:37]} 39. g4 {[%emt 0:00:26]} hxg4 {[%emt 0:01:29]} 40. hxg4 {[%emt 0:00:05]} Nh4 {[%emt 0:32:28]} 41. Ra8+ {[%emt 0:11:20]} Kh7 {[%emt 0:00:00]} 42. Bd8 {[%emt 0:01:04]} Rxf4 {[%emt 0:00:00]} 43. g5 {[%emt 0:00:51]} Nf3+ {[%emt 0:00:00]} 44. Kg2 {[%emt 0:05:33]} Nxe5 {[%emt 0:00:00]} 45. Kg3 {[%emt 0:01:19]} Rf3+ {[%emt 0:00:00]} 46. Kg2 {[%emt 0:00:58]} Rf4 {[%emt 0:00:00]} 47. Bf6 {[%emt 0:00:08]} Rxf6 {[%emt 0:00:00]} 48. gxf6 {[%emt 0:00:12]} Kg6 {[%emt 0:00:00]} 49. Ra6 {[%emt 0:00:29]} Ng4 {[%emt 0:00:00]} 50. Kf3 {[%emt 0:00:08]} Nxf6 {[%emt 0:00:00]} 51. Kf4 {[%emt 0:00:08]} Kg7 {[%emt 0:00:00]} 52. Kg5 {[%emt 0:00:13]} Nh7+ {[%emt 0:00:00]} 53. Kf5 {[%emt 0:00:16]} Nf8 {[%emt 0:00:00]} 54. Ke5 {[%emt 0:00:11]} Ng6+ {[%emt 0:00:00]} 55. Kd6 {[%emt 0:00:06]} Kf8 {[%emt 0:00:00]} 56. Ra8+ {[%emt 0:00:11]} Kg7 {[%emt 0:00:00]} 57. Kd7 {[%emt 0:00:04]} Ne5+ {[%emt 0:01:56]} 58. Ke8 {[%emt 0:00:30]} Ng4 {[%emt 0:00:37]} 59. Ra1 {[%emt 0:00:49]} Nf6+ {[%emt 0:00:17]} 60. Kd8 {[%emt 0:00:12]} Ng8 {[%emt 0:02:07]} 61. Rf1 {[%emt 0:00:29]} Kf8 {[%emt 0:00:21]} 62. Rf2 {[%emt 0:00:58]} Ne7 {[%emt 0:00:22]} 63. Rf6 {[%emt 0:00:38]} Ng6 {[%emt 0:00:44]} 64. Kd7 {[%emt 0:00:45]} Ne5+ {[%emt 0:00:22]} 65. Kd6 {[%emt 0:00:09]} Ng6 {[%emt 0:00:09]} 66. Rxf7+ {[%emt 0:00:06]} Kxf7 {[%emt 0:00:39]} 1/2-1/2

[Event "AUT-ch 2018"]
[Site "Vienna"]
[Date "2018.07.26"]
[Round "6"]
[White "Goessler, Markus"]
[Black "Vitouch, Anatol"]
[Result "0-1"]
[ECO "C08"]
[WhiteElo "2190"]
[BlackElo "2317"]
[Annotator "NA"]
[PlyCount "86"]
[EventDate "2018.07.22"]
[EventType "swiss"]
[EventCountry "AUT"]
[SourceTitle "playchess.com"]
[Source "ChessBase"]
[SourceQuality "1"]
[TimeControl "40/5400+30:1800+30"]

1. e4 {[%emt 0:00:00]} e6 {[%emt 0:00:03]} 2. d4 {[%emt 0:00:00]} d5 {[%emt 0:00:04]} 3. Nd2 {[%emt 0:00:00]} c5 {[%emt 0:00:04]} 4. exd5 {[%emt 0:00:14]} exd5 {[%emt 0:00:05]} 5. Ngf3 {[%emt 0:00:10]} a6 {[%emt 0:00:13]} 6. Be2 {[%emt 0:00:33]} Nf6 {[%emt 0:00:48]} 7. O-O {[%emt 0:00:16]} Be7 {[%emt 0:00:25]} 8. dxc5 {[%emt 0:00:38]} Bxc5 {[%emt 0:00:22]} 9. Nb3 {[%emt 0:00:11]} Bb6 {[%emt 0:00:45]} 10. Qd3 {[%emt 0:02:47]} O-O {[%emt 0:01:33]} 11. Be3 {[%emt 0:00:17]} Bc7 {[%emt 0:09:31]} 12. c3 {[%emt 0:09:24]} Bg4 {[%emt 0:05:08]} 13. h3 {[%emt 0:14:06]} Bh5 {[%emt 0:00:28]} 14. Bd4 {[%emt 0:22:10]} Nbd7 {[%emt 0:08:44]} 15. Nh4 {[%emt 0:08:31]} Bxe2 {[%emt 0:06:40]} 16. Qxe2 {[%emt 0:00:02]} Re8 {[%emt 0:11:08]} 17. Qf3 {[%emt 0:06:27]} Ne5 {[%emt 0:01:12]} 18. Bxe5 {[%emt 0:01:07]} Rxe5 {[%emt 0:00:44]} 19. Nf5 {[%emt 0:02:18]} Ne4 {[%emt 0:03:37]} 20. Ne3 {[%emt 0:20:55]} Qd6 {[%emt 0:10:08]} 21. Rfd1 {[%emt 0:03:22]} Rg5 {[%emt 0:01:41]} 22. Nf1 {[%emt 0:00:29]} Qg6 {[%emt 0:08:06]} 23. Nd4 {[%emt 0:01:51]} Re8 {[%emt 0:01:20]} 24. Re1 {[%emt 0:01:34]} Bb6 {[%emt 0:02:26]} 25. Rad1 {[%emt 0:00:30]} h5 {[%emt 0:03:02]} 26. Ne3 {[%emt 0:00:51]} Rge5 {[%emt 0:04:41]} 27. h4 {[%emt 0:02:21]} Nd6 {[%emt 0:06:08]} 28. g3 {[%emt 0:00:56]} Bxd4 {[%emt 0:03:15]} 29. cxd4 {[%emt 0:00:49]} Re4 {[%emt 0:00:10]} 30. Ng2 {[%emt 0:00:29]} Rxe1+ {[%emt 0:02:27]} 31. Nxe1 {[%emt 0:00:04]} Re4 {[%emt 0:00:45]} 32. Ng2 {[%emt 0:00:46]} Nf5 {[%emt 0:01:53]} 33. Qb3 {[%emt 0:01:20]} Qc6 {[%emt 0:01:55]} 34. Nf4 {[%emt 0:00:56]} Nxh4 {[%emt 0:01:53]} 35. Nxd5 {[%emt 0:00:25]} Nf5 {[%emt 0:01:56]} 36. a3 {[%emt 0:00:33]} h4 {[%emt 0:02:20]} 37. Nb4 {[%emt 0:00:30]} Qg6 {[%emt 0:00:46]} 38. Qf3 {[%emt 0:00:31]} Nxd4 {[%emt 0:00:52]} 39. Qd3 {[%emt 0:00:24]} hxg3 {[%emt 0:01:24]} 40. fxg3 {[%emt 0:00:10]} Ne2+ {[%emt 0:30:56]} 41. Kh2 {[%emt 0:04:20]} Nxg3 {[%emt 0:00:00]} 42. Qd8+ {[%emt 0:08:44]} Kh7 {[%emt 0:00:00]} 43. Rg1 {[%emt 0:00:06]} Nf1+ {[%emt 0:00:00]} 0-1

[Event "AUT-ch 2018"]
[Site "Vienna"]
[Date "2018.07.26"]
[Round "6"]
[White "Riemelmoser, Stefan"]
[Black "Schnegg, Anna-Lena"]
[Result "0-1"]
[ECO "C97"]
[WhiteElo "2175"]
[BlackElo "2175"]
[Annotator "NA"]
[PlyCount "74"]
[EventDate "2018.07.22"]
[EventType "swiss"]
[EventCountry "AUT"]
[SourceTitle "playchess.com"]
[Source "ChessBase"]
[SourceQuality "1"]
[TimeControl "40/5400+30:1800+30"]

1. e4 {[%emt 0:00:00]} e5 {[%emt 0:00:05]} 2. Nf3 {[%emt 0:00:00]} Nc6 {[%emt 0:00:05]} 3. Bb5 {[%emt 0:00:00]} a6 {[%emt 0:00:05]} 4. Ba4 {[%emt 0:00:02]} Nf6 {[%emt 0:00:05]} 5. O-O {[%emt 0:00:15]} Be7 {[%emt 0:00:06]} 6. Re1 {[%emt 0:00:13]} b5 {[%emt 0:00:05]} 7. Bb3 {[%emt 0:00:11]} d6 {[%emt 0:00:05]} 8. c3 {[%emt 0:00:14]} O-O {[%emt 0:00:07]} 9. h3 {[%emt 0:00:09]} Na5 {[%emt 0:00:04]} 10. Bc2 {[%emt 0:00:10]} c5 {[%emt 0:00:04]} 11. d4 {[%emt 0:00:21]} Qc7 {[%emt 0:00:16]} 12. Nbd2 {[%emt 0:01:11]} Rd8 {[%emt 0:02:32]} 13. d5 {[%emt 0:08:02]} c4 {[%emt 0:00:16]} 14. Nf1 {[%emt 0:03:46]} Nb7 {[%emt 0:00:39]} 15. Ng3 {[%emt 0:03:16]} g6 {[%emt 0:05:39]} 16. Bg5 {[%emt 0:05:11]} Ne8 {[%emt 0:01:00]} 17. Bh6 {[%emt 0:04:08]} Ng7 {[%emt 0:02:00]} 18. Nh2 {[%emt 0:05:30]} f6 {[%emt 0:04:11]} 19. Ng4 {[%emt 0:02:10]} Rf8 {[%emt 0:02:34]} 20. Re3 {[%emt 0:21:46]} Nd8 {[%emt 0:08:16]} 21. h4 {[%emt 0:16:54]} Nf7 {[%emt 0:05:10]} 22. Bxg7 {[%emt 0:09:41]} Kxg7 {[%emt 0:00:17]} 23. a4 {[%emt 0:08:06]} bxa4 {[%emt 0:10:33]} 24. Qe2 {[%emt 0:00:35]} Rb8 {[%emt 0:01:02]} 25. Rxa4 {[%emt 0:03:03]} Rxb2 {[%emt 0:05:25]} 26. Rxc4 {[%emt 0:00:17]} Qa5 {[%emt 0:02:35]} 27. Nf5+ {[%emt 0:03:48]} gxf5 {[%emt 0:08:30]} 28. exf5 {[%emt 0:01:19]} Bxf5 {[%emt 0:04:48]} 29. Rg3 {[%emt 0:00:09]} Kh8 {[%emt 0:03:31]} 30. Ne3 {[%emt 0:00:46]} Bxc2 {[%emt 0:08:08]} 31. Nxc2 {[%emt 0:00:20]} f5 {[%emt 0:02:40]} 32. Qd3 {[%emt 0:02:22]} e4 {[%emt 0:03:54]} 33. Qd4+ {[%emt 0:01:13]} Ne5 {[%emt 0:00:06]} 34. Nb4 {[%emt 0:01:17]} Rb1+ {[%emt 0:01:17]} 35. Kh2 {[%emt 0:00:04]} Qa1 {[%emt 0:00:21]} 36. Rg5 {[%emt 0:01:00]} Rh1+ {[%emt 0:00:10]} 37. Kg3 {[%emt 0:00:03]} f4# {[%emt 0:00:40]} 0-1

[Event "AUT-ch 2018"]
[Site "Vienna"]
[Date "2018.07.26"]
[Round "6"]
[White "Jakits, Leopold"]
[Black "Gerhold, Michael"]
[Result "1/2-1/2"]
[ECO "A30"]
[WhiteElo "2161"]
[BlackElo "2254"]
[Annotator "NA"]
[PlyCount "107"]
[EventDate "2018.07.22"]
[EventType "swiss"]
[EventCountry "AUT"]
[SourceTitle "playchess.com"]
[Source "ChessBase"]
[SourceQuality "1"]
[TimeControl "40/5400+30:1800+30"]

1. c4 {[%emt 0:00:00]} c5 {[%emt 0:00:52]} 2. g3 {[%emt 0:00:04]} Nc6 {[%emt 0:01:49]} 3. Bg2 {[%emt 0:00:08]} g6 {[%emt 0:00:05]} 4. Nf3 {[%emt 0:00:37]} Bg7 {[%emt 0:00:17]} 5. O-O {[%emt 0:00:04]} d6 {[%emt 0:00:32]} 6. Nc3 {[%emt 0:00:38]} Nh6 {[%emt 0:02:24]} 7. d3 {[%emt 0:02:01]} O-O {[%emt 0:00:17]} 8. Rb1 {[%emt 0:07:36]} Bd7 {[%emt 0:03:55]} 9. a3 {[%emt 0:03:51]} Nf5 {[%emt 0:00:52]} 10. Bd2 {[%emt 0:14:35]} a5 {[%emt 0:04:14]} 11. b3 {[%emt 0:01:19]} Rb8 {[%emt 0:00:54]} 12. e3 {[%emt 0:07:32]} Ne5 {[%emt 0:03:43]} 13. Nxe5 {[%emt 0:02:25]} dxe5 {[%emt 0:00:28]} 14. b4 {[%emt 0:01:02]} axb4 {[%emt 0:03:13]} 15. axb4 {[%emt 0:00:02]} cxb4 {[%emt 0:01:25]} 16. Rxb4 {[%emt 0:04:36]} Bc6 {[%emt 0:00:08]} 17. Qb1 {[%emt 0:05:15]} Bxg2 {[%emt 0:02:46]} 18. Kxg2 {[%emt 0:00:03]} Qd7 {[%emt 0:00:04]} 19. Rd1 {[%emt 0:22:37]} Rfd8 {[%emt 0:00:33]} 20. Be1 {[%emt 0:00:18]} h5 {[%emt 0:01:02]} 21. Ne4 {[%emt 0:01:37]} Bh6 {[%emt 0:01:48]} 22. Bc3 {[%emt 0:04:39]} f6 {[%emt 0:09:22]} 23. Rb6 {[%emt 0:01:06]} Qc8 {[%emt 0:06:44]} 24. Kh1 {[%emt 0:05:07]} h4 {[%emt 0:02:41]} 25. gxh4 {[%emt 0:07:19]} Nxh4 {[%emt 0:18:27]} 26. Rg1 {[%emt 0:00:13]} Kf7 {[%emt 0:02:26]} 27. c5 {[%emt 0:02:18]} Qf5 {[%emt 0:07:19]} 28. Rg3 {[%emt 0:01:55]} Qh5 {[%emt 0:04:47]} 29. c6 {[%emt 0:00:25]} bxc6 {[%emt 0:00:52]} 30. Rxb8 {[%emt 0:00:19]} Rxb8 {[%emt 0:00:05]} 31. Qxb8 {[%emt 0:00:11]} Qd1+ {[%emt 0:00:13]} 32. Be1 {[%emt 0:00:10]} Qxe1+ {[%emt 0:00:33]} 33. Rg1 {[%emt 0:00:03]} Qa5 {[%emt 0:07:40]} 34. Qb3+ {[%emt 0:00:11]} Qd5 {[%emt 0:00:12]} 35. Rb1 {[%emt 0:01:42]} f5 {[%emt 0:01:09]} 36. Qxd5+ {[%emt 0:00:03]} cxd5 {[%emt 0:00:09]} 37. Nc3 {[%emt 0:03:39]} d4 {[%emt 0:04:47]} 38. exd4 {[%emt 0:00:51]} exd4 {[%emt 0:00:10]} 39. Ne2 {[%emt 0:00:47]} Bg7 {[%emt 0:00:58]} 40. f4 {[%emt 0:00:48]} Bf6 {[%emt 0:36:01]} 41. Kg1 {[%emt 0:31:47]} g5 {[%emt 0:03:28]} 42. Kf2 {[%emt 0:00:00]} g4 {[%emt 0:00:00]} 43. Rb5 {[%emt 0:00:00]} e6 {[%emt 0:00:00]} 44. Rb7+ {[%emt 0:00:00]} Kg6 {[%emt 0:00:00]} 45. Rb6 {[%emt 0:00:00]} Kf7 {[%emt 0:00:00]} 46. Rb7+ {[%emt 0:00:00]} Kg6 {[%emt 0:00:00]} 47. Ng1 {[%emt 0:00:00]} e5 {[%emt 0:00:00]} 48. Kg3 {[%emt 0:00:00]} exf4+ {[%emt 0:00:00]} 49. Kxf4 {[%emt 0:00:00]} Ng2+ {[%emt 0:00:00]} 50. Kg3 {[%emt 0:00:00]} Ne3 {[%emt 0:00:00]} 51. Rb5 {[%emt 0:00:00]} Nf1+ {[%emt 0:00:00]} 52. Kg2 {[%emt 0:00:00]} Ne3+ {[%emt 0:00:00]} 53. Kg3 {[%emt 0:00:00]} Nf1+ {[%emt 0:00:00]} 54. Kg2 {[%emt 0:00:00]} 1/2-1/2